lending/lending_fUSD_20260312
["ID","MTS","AMOUNT","RATE_DAILY","PERIOD"]
[408284227,1773351048126,-200.0,0.00043068,120]
[408284228,1773351048135,-200.0,0.00043068,120]
[408284229,1773351048144,-200.0,0.00043068,120]
[408284230,1773351048154,-200.0,0.00043068,120]
[408284231,1773351048165,-200.0,0.00043068,120]
[408284232,1773351048174,-507.0,0.00043069,26]
[408284233,1773351048184,-1999.0,0.00043287,120]
[408284234,1773351048193,-3547.71,0.00043287,120]
[408284235,1773351048203,-1444.0,0.00043562,120]
[408284236,1773351048213,-1999.0,0.00043698,120]
[408284237,1773351048223,-3547.71,0.00043698,120]
[408284238,1773351048232,-4823.75972199,0.000439,7]
[408284239,1773351048241,-150.0,0.00044,57]
[408284240,1773351048251,-1008.0,0.00044,30]
[408284241,1773351048260,-1999.0,0.00044109,120]
[408284242,1773351048270,-3547.71,0.00044109,120]
[408284243,1773351048279,-6444.81761445,0.00044389,28]
[408284244,1773351048288,-1999.0,0.0004452,120]
[408284245,1773351048297,-3547.71,0.0004452,120]
[408284246,1773351048306,-702.15,0.000446,30]
[408284247,1773351048316,-347.56051533,0.00044727,95]
[408284248,1773351048326,-1999.0,0.00044931,120]
[408284249,1773351048335,-3547.71,0.00044931,120]
[408284250,1773351048345,-209.78583947,0.00045,30]
[408284251,1773351048355,-186.46025929,0.00045,30]
[408284252,1773351048370,-150.0,0.00045,30]
[408284253,1773351048380,-211.88823769,0.00045,30]
[408284254,1773351048390,-239.30449894,0.00045,30]
[408284255,1773351048401,-151.14525656,0.00045,30]
[408284256,1773351048411,-253.64282151,0.00045,30]
[408284257,1773351048421,-235.30103741,0.00045,30]
[408284258,1773351048430,-160.9340658,0.00045,30]
[408284259,1773351048441,-151.27870997,0.00045,30]
[408284260,1773351048451,-150.55295773,0.00045,30]
[408284261,1773351048460,-153.04347814,0.00045,30]
[408284262,1773351048469,-151.67480634,0.00045,30]
[408284263,1773351048479,-152.21377695,0.00045,30]
[408284264,1773351048488,-255.03177489,0.00045,30]
[408284265,1773351048498,-507.0,0.00045241,28]
[408284266,1773351048508,-1999.0,0.00045342,120]
[408284267,1773351048517,-3547.71,0.00045342,120]
[408284268,1773351048527,-1999.0,0.00045753,120]
[408284269,1773351048536,-3547.71,0.00045753,120]
[408284270,1773351048548,-2873.19905948,0.000459,14]
[408284271,1773351048557,-4380.25710911,0.00046,90]
[408284272,1773351048567,-151.0,0.00046,120]
[408284273,1773351048577,-273.45272402,0.00046027,2]
[408284274,1773351048587,-2600.43,0.000461,14]
[408284275,1773351048596,-1999.0,0.00046164,120]
[408284276,1773351048606,-3547.71,0.00046164,120]
[408284277,1773351048615,-150.0,0.0004625,30]
[408284278,1773351048625,-3484.34,0.000465,120]
[408284279,1773351048634,-1999.0,0.00046575,120]
[408284280,1773351048643,-3547.71,0.00046575,120]
[408284281,1773351048653,-2029.9,0.00046581,120]
[408284282,1773351048662,-150.0,0.00046801,30]
[408284283,1773351048672,-593.56000012,0.00046986,120]
[408284284,1773351048681,-3547.71,0.00046986,120]
[408284285,1773351048691,-3547.71,0.00047397,120]
[408284286,1773351048700,-702.15,0.000474,30]
[408284287,1773351048709,-507.0,0.00047414,30]
[408284288,1773351048719,-150.0,0.000475,30]
[408284289,1773351048729,-156.31918238,0.00047672,60]
[408284290,1773351048738,-217.80954863,0.00047678,120]
[408284291,1773351048747,-151.0,0.00047769,120]
[408284292,1773351048756,-300.0,0.00047771,30]
[408284293,1773351048767,-500.0,0.00047772,120]
[408284294,1773351048775,-9196.01445,0.00047772,120]
[408284295,1773351048785,-360.08296675,0.00047772,120]
[408284296,1773351048794,-30651.39260898,0.00047772,120]
[408284297,1773351048803,-69937.0,0.00047772,45]
[408284298,1773351048813,-1003.49710246,0.00047772,120]
[408284299,1773351048822,-150.0,0.00047772,2]
[408284300,1773351048831,-15102.368531,0.00047772,2]
[408284301,1773351048841,-1000.0,0.00047772,120]
[408284302,1773351048850,-50000.0,0.00047772,51]
[408284303,1773351048860,-50000.0,0.00047772,55]
[408284304,1773351048869,-500.3653221,0.00047772,2]
[408284305,1773351048878,-164.431,0.00047772,2]
[408284306,1773351048887,-500.0,0.00047772,2]
[408284307,1773351048897,-500.0,0.00047772,2]
[408284308,1773351048906,-500.0,0.00047772,2]
[408284309,1773351048915,-500.0,0.00047772,2]
[408284310,1773351048925,-500.0,0.00047772,2]
[408284311,1773351048934,-500.0,0.00047772,2]
[408284312,1773351048943,-500.0,0.00047772,2]
[408284313,1773351048952,-500.0,0.00047772,2]
[408284314,1773351048962,-500.0,0.00047772,2]
[408284315,1773351048971,-500.0,0.00047772,2]
[408284316,1773351048980,-500.0,0.00047772,2]
[408284317,1773351048990,-500.0,0.00047772,2]
[408284318,1773351048999,-500.0,0.00047772,2]
[408284319,1773351049009,-500.0,0.00047772,2]
[408284320,1773351049019,-200.0,0.00047772,120]
[408284321,1773351049028,-258.630233,0.00047772,120]
[408284322,1773351049037,-1922.15,0.00047779,14]
[408284323,1773351049046,-757.09,0.0004778,14]
[408284324,1773351049055,-3547.79,0.00047808,120]
[408284325,1773351049064,-3269.77471295,0.00047854,113]
[408284326,1773351049074,-11671.59196317,0.00048,120]
[408284327,1773351049083,-320.92,0.00048,120]
[408284328,1773351049092,-1499.44,0.00048348,120]
[408284329,1773351049102,-150.0,0.00048348,120]
[408284330,1773351049111,-514.97261224,0.00048493,7]
[408284331,1773351049121,-18703.4784,0.00048587,120]
[408284332,1773351049131,-150.22083333,0.000486,2]
[408284333,1773351049140,-150.0,0.0004875,30]
[408284334,1773351049150,-35585.1692,0.00048897,120]
[408284335,1773351049160,-3000.0,0.000489,17]
[408284336,1773351049169,-500.0,0.00049,60]
[408284337,1773351049178,-150.86578077,0.00049,100]
[408284338,1773351049187,-5000.0,0.000491,120]
[408284339,1773351049197,-2834.0,0.00049179,31]
[408284340,1773351049206,-702.15,0.000493,30]
[408284341,1773351049215,-10000.0,0.00049315,120]
[408284342,1773351049224,-10000.0,0.00049315,120]
[408284343,1773351049234,-10000.0,0.00049315,120]
[408284344,1773351049243,-1114.82725512,0.00049315,120]
[408284345,1773351049252,-1000.0,0.00049315,120]
[408284346,1773351049262,-1000.0,0.00049315,120]
[408284347,1773351049271,-567.23873977,0.00049315,120]
[408284348,1773351049280,-180.2,0.00049315,30]
[408284349,1773351049290,-6444.81761445,0.00049379,28]
[408284350,1773351049299,-5000.0,0.000494,120]
[408284351,1773351049308,-150.0,0.000494,120]
[408284352,1773351049317,-171.03012126,0.000494,36]
[408284353,1773351049327,-151.0,0.00049476,120]
[408284354,1773351049337,-150.0,0.00049476,120]
[408284355,1773351049347,-150.0,0.00049476,120]
[408284356,1773351049358,-200.0,0.00049476,120]
[408284357,1773351049370,-1131.19487627,0.00049478,90]
[408284358,1773351049380,-500.0,0.00049479,120]
[408284359,1773351049389,-519.66743845,0.00049479,120]
[408284360,1773351049398,-547.09,0.00049479,120]
[408284361,1773351049409,-547.09,0.00049479,120]
[408284362,1773351049418,-547.09,0.00049479,120]
[408284363,1773351049428,-547.09,0.00049479,120]
[408284364,1773351049439,-547.09,0.00049479,120]
[408284365,1773351049449,-547.09,0.00049479,120]
[408284366,1773351049458,-547.09,0.00049479,120]
[408284367,1773351049467,-547.09,0.00049479,120]
[408284368,1773351049477,-547.09,0.00049479,120]
[408284369,1773351049487,-547.09,0.00049479,120]
[408284370,1773351049497,-547.09,0.00049479,120]
[408284371,1773351049507,-547.09,0.00049479,120]
[408284372,1773351049517,-547.09,0.00049479,120]
[408284373,1773351049527,-547.09,0.00049479,120]
[408284374,1773351049536,-547.09,0.00049479,120]
[408284375,1773351049546,-547.09,0.00049479,120]
[408284376,1773351049555,-547.09,0.00049479,120]
[408284377,1773351049565,-547.09,0.00049479,120]
[408284378,1773351049574,-547.09,0.00049479,120]
[408284379,1773351049584,-500.0,0.00049479,30]
[408284380,1773351049593,-500.0,0.00049479,30]
[408284381,1773351049603,-500.0,0.00049479,30]
[408284382,1773351049612,-500.0,0.00049479,30]
[408284383,1773351049621,-359.60905847,0.00049479,30]
[408284384,1773351049631,-500.0,0.00049479,120]
[408284385,1773351049640,-500.0,0.00049479,120]
[408284386,1773351049649,-500.0,0.00049479,120]
[408284387,1773351049658,-500.0,0.00049479,120]
[408284388,1773351049667,-500.0,0.00049479,120]
[408284389,1773351049677,-500.0,0.00049479,120]
[408284390,1773351049686,-500.0,0.00049479,120]
[408284391,1773351049695,-500.0,0.00049479,120]
[408284392,1773351049705,-500.0,0.00049479,120]
[408284393,1773351049714,-500.0,0.00049479,120]
[408284394,1773351049724,-500.0,0.00049479,120]
[408284395,1773351049734,-500.0,0.00049479,120]
[408284396,1773351049744,-619.71,0.00049479,120]
[408284397,1773351049754,-500.0,0.00049479,120]
[408284398,1773351049763,-500.0,0.00049479,120]
[408284399,1773351049772,-500.0,0.00049479,120]
[408284400,1773351049782,-500.0,0.00049479,120]
[408284401,1773351049791,-569.19,0.00049479,120]
[408284402,1773351049800,-500.0,0.00049479,120]
[408284403,1773351049809,-500.0,0.00049479,120]
[408284404,1773351049818,-500.0,0.00049479,120]
[408284405,1773351049828,-500.0,0.00049479,120]
[408284406,1773351049837,-500.0,0.00049479,120]
[408284407,1773351049846,-500.0,0.00049479,120]
[408284408,1773351049855,-500.0,0.00049479,120]
[408284409,1773351049865,-500.0,0.00049479,120]
[408284410,1773351049875,-500.0,0.00049479,120]
[408284411,1773351049884,-500.0,0.00049479,120]
[408284412,1773351049894,-500.0,0.00049479,120]
[408284413,1773351049903,-500.0,0.00049479,120]
[408284414,1773351049912,-500.0,0.00049479,120]
[408284415,1773351049922,-500.0,0.00049479,120]
[408284416,1773351049931,-500.0,0.00049479,120]
[408284417,1773351049941,-393.36,0.00049479,120]
[408284418,1773351049951,-500.0,0.00049479,120]
[408284419,1773351049960,-500.0,0.00049479,120]
[408284420,1773351049969,-500.0,0.00049479,120]
[408284421,1773351049979,-638.55,0.00049479,120]
[408284422,1773351049988,-500.0,0.00049479,120]
[408284423,1773351049997,-500.0,0.00049479,120]
[408284424,1773351050007,-500.0,0.00049479,120]
[408284425,1773351050016,-500.0,0.00049479,120]
[408284426,1773351050025,-500.0,0.00049479,120]
[408284427,1773351050035,-500.0,0.00049479,120]
[408284428,1773351050044,-500.0,0.00049479,120]
[408284429,1773351050054,-500.0,0.00049479,120]
[408284430,1773351050063,-500.0,0.00049479,120]
[408284431,1773351050072,-496.61125192,0.00049479,120]
[408284432,1773351050082,-500.0,0.00049479,120]
[408284433,1773351050092,-480.27,0.00049479,120]
[408284434,1773351050102,-673.23,0.00049479,30]
[408284435,1773351050111,-500.0,0.00049479,120]
[408284436,1773351050121,-673.23,0.00049479,30]
[408284437,1773351050132,-500.0,0.00049479,120]
[408284438,1773351050142,-673.23,0.00049479,30]
[408284439,1773351050152,-500.0,0.00049479,120]
[408284440,1773351050161,-673.23,0.00049479,30]
[408284441,1773351050171,-906.69,0.00049479,120]
[408284442,1773351050180,-500.0,0.00049479,120]
[408284443,1773351050189,-906.69,0.00049479,120]
[408284444,1773351050198,-673.23,0.00049479,30]
[408284445,1773351050208,-500.0,0.00049479,120]
[408284446,1773351050218,-673.23,0.00049479,30]
[408284447,1773351050228,-906.69,0.00049479,120]
[408284448,1773351050237,-500.0,0.00049479,120]
[408284449,1773351050247,-673.23,0.00049479,30]
[408284450,1773351050257,-500.0,0.00049479,120]
[408284451,1773351050266,-906.69,0.00049479,120]
[408284452,1773351050275,-673.23,0.00049479,30]
[408284453,1773351050285,-500.0,0.00049479,120]
[408284454,1773351050294,-673.23,0.00049479,30]
[408284455,1773351050304,-500.0,0.00049479,120]
[408284456,1773351050314,-906.69,0.00049479,120]
[408284457,1773351050323,-673.23,0.00049479,30]
[408284458,1773351050332,-500.0,0.00049479,120]
[408284459,1773351050341,-906.69,0.00049479,120]
[408284460,1773351050351,-673.23,0.00049479,30]
[408284461,1773351050363,-906.69,0.00049479,120]
[408284462,1773351050374,-500.0,0.00049479,120]
[408284463,1773351050384,-673.23,0.00049479,30]
[408284464,1773351050394,-906.69,0.00049479,120]
[408284465,1773351050406,-673.23,0.00049479,30]
[408284466,1773351050416,-906.69,0.00049479,120]
[408284467,1773351050425,-673.23,0.00049479,30]
[408284468,1773351050436,-906.69,0.00049479,120]
[408284469,1773351050446,-906.69,0.00049479,120]
[408284470,1773351050456,-673.23,0.00049479,30]
[408284471,1773351050466,-673.23,0.00049479,30]
[408284472,1773351050475,-906.69,0.00049479,120]
[408284473,1773351050485,-906.69,0.00049479,120]
[408284474,1773351050495,-673.23,0.00049479,30]
[408284475,1773351050505,-673.23,0.00049479,30]
[408284476,1773351050517,-673.23,0.00049479,30]
[408284477,1773351050527,-906.69,0.00049479,120]
[408284478,1773351050537,-673.23,0.00049479,30]
[408284479,1773351050547,-906.69,0.00049479,120]
[408284480,1773351050557,-906.69,0.00049479,120]
[408284481,1773351050567,-673.23,0.00049479,30]
[408284482,1773351050577,-906.69,0.00049479,120]
[408284483,1773351050587,-673.23,0.00049479,30]
[408284484,1773351050596,-906.69,0.00049479,120]
[408284485,1773351050606,-906.69,0.00049479,120]
[408284486,1773351050615,-673.23,0.00049479,30]
[408284487,1773351050625,-906.69,0.00049479,120]
[408284488,1773351050635,-673.31,0.00049479,30]
[408284489,1773351050645,-906.69,0.00049479,120]
[408284490,1773351050655,-906.69,0.00049479,120]
[408284491,1773351050664,-906.69,0.00049479,120]
[408284492,1773351050674,-906.709992,0.00049479,120]
[408284493,1773351050684,-500.0,0.00049479,120]
[408284494,1773351050694,-500.0,0.00049479,120]
[408284495,1773351050703,-500.0,0.00049479,120]
[408284496,1773351050713,-500.0,0.00049479,120]
[408284497,1773351050723,-500.0,0.00049479,120]
[408284498,1773351050733,-500.0,0.00049479,120]
[408284499,1773351050742,-500.0,0.00049479,120]
[408284500,1773351050752,-500.0,0.00049479,120]
[408284501,1773351050762,-500.0,0.00049479,120]
[408284502,1773351050771,-500.0,0.00049479,120]
[408284503,1773351050781,-500.0,0.00049479,120]
[408284504,1773351050789,-500.0,0.00049479,120]
[408284505,1773351050799,-500.0,0.00049479,120]
[408284506,1773351050808,-500.0,0.00049479,120]
[408284507,1773351050817,-500.0,0.00049479,120]
[408284508,1773351050827,-500.0,0.00049479,120]
[408284509,1773351050836,-500.0,0.00049479,120]
[408284510,1773351050846,-500.0,0.00049479,120]
[408284511,1773351050855,-500.0,0.00049479,120]
[408284512,1773351050864,-500.0,0.00049479,120]
[408284513,1773351050873,-500.0,0.00049479,120]
[408284514,1773351051022,-214.43557143,0.00049479,120]
[408284515,1773351051034,-500.0,0.00049479,120]
[408284516,1773351051044,-500.0,0.00049479,120]
[408284517,1773351051053,-500.0,0.00049479,120]
[408284518,1773351051062,-500.0,0.00049479,120]
[408284519,1773351051071,-241.29,0.00049479,120]
[408284520,1773351051081,-2452.97,0.00049479,120]
[408284521,1773351051090,-2452.97,0.00049479,120]
[408284522,1773351051099,-2452.97,0.00049479,120]
[408284523,1773351051108,-2452.97,0.00049479,120]
[408284524,1773351051117,-500.0,0.00049479,120]
[408284525,1773351051127,-2452.97,0.00049479,120]
[408284526,1773351051136,-500.0,0.00049479,120]
[408284527,1773351051146,-2452.97,0.00049479,120]
[408284528,1773351051155,-500.0,0.00049479,120]
[408284529,1773351051164,-2452.97,0.00049479,120]
[408284530,1773351051174,-500.0,0.00049479,120]
[408284531,1773351051184,-2452.97,0.00049479,120]
[408284532,1773351051193,-522.65,0.00049479,120]
[408284533,1773351051203,-2452.97,0.00049479,120]
[408284534,1773351051213,-2452.97,0.00049479,120]
[408284535,1773351051223,-2452.97,0.00049479,120]
[408284536,1773351051232,-500.0,0.00049479,120]
[408284537,1773351051242,-500.0,0.00049479,120]
[408284538,1773351051251,-500.0,0.00049479,120]
[408284539,1773351051261,-500.0,0.00049479,120]
[408284540,1773351051270,-500.0,0.00049479,120]
[408284541,1773351051281,-500.0,0.00049479,120]
[408284542,1773351051291,-500.0,0.00049479,120]
[408284543,1773351051301,-500.0,0.00049479,120]
[408284544,1773351051312,-500.0,0.00049479,120]
[408284545,1773351051323,-500.0,0.00049479,120]
[408284546,1773351051332,-436.42,0.00049479,120]
[408284547,1773351051342,-500.0,0.00049479,120]
[408284548,1773351051352,-500.0,0.00049479,120]
[408284549,1773351051366,-500.0,0.00049479,120]
[408284550,1773351051376,-500.0,0.00049479,120]
[408284551,1773351051386,-500.0,0.00049479,120]
[408284552,1773351051396,-500.0,0.00049479,120]
[408284553,1773351051407,-327.31928736,0.00049479,120]
[408284554,1773351051417,-500.0,0.00049479,120]
[408284555,1773351051427,-500.0,0.00049479,120]
[408284556,1773351051437,-469.18000213,0.00049479,120]
[408284557,1773351051447,-500.0,0.00049479,120]
[408284558,1773351051457,-500.0,0.00049479,120]
[408284559,1773351051467,-230.74228365,0.00049479,120]
[408284560,1773351051478,-500.0,0.00049479,120]
[408284561,1773351051487,-500.0,0.00049479,120]
[408284562,1773351051497,-500.0,0.00049479,120]
[408284563,1773351051507,-500.0,0.00049479,120]
[408284564,1773351051516,-500.0,0.00049479,120]
[408284565,1773351051527,-500.0,0.00049479,120]
[408284566,1773351051537,-500.0,0.00049479,120]
[408284567,1773351051547,-500.0,0.00049479,120]
[408284568,1773351051557,-500.0,0.00049479,120]
[408284569,1773351051567,-500.0,0.00049479,120]
[408284570,1773351051577,-500.0,0.00049479,120]
[408284571,1773351051586,-395.12,0.00049479,120]
[408284572,1773351051596,-500.0,0.00049479,120]
[408284573,1773351051605,-500.0,0.00049479,120]
[408284574,1773351051614,-500.0,0.00049479,120]
[408284575,1773351051623,-500.0,0.00049479,120]
[408284576,1773351051632,-500.0,0.00049479,120]
[408284577,1773351051642,-500.0,0.00049479,120]
[408284578,1773351051651,-500.0,0.00049479,120]
[408284579,1773351051661,-500.0,0.00049479,120]
[408284580,1773351051671,-500.0,0.00049479,120]
[408284581,1773351051683,-500.0,0.00049479,120]
[408284582,1773351051692,-500.0,0.00049479,120]
[408284583,1773351051701,-528.41267087,0.00049479,120]
[408284584,1773351051711,-500.0,0.00049479,120]
[408284585,1773351051720,-500.0,0.00049479,120]
[408284586,1773351051731,-500.0,0.00049479,120]
[408284587,1773351051740,-500.0,0.00049479,120]
[408284588,1773351051750,-500.0,0.00049479,120]
[408284589,1773351051760,-500.0,0.00049479,120]
[408284590,1773351051770,-500.0,0.00049479,120]
[408284591,1773351051779,-500.0,0.00049479,120]
[408284592,1773351051789,-500.0,0.00049479,120]
[408284593,1773351051798,-500.0,0.00049479,120]
[408284594,1773351051808,-500.0,0.00049479,120]
[408284595,1773351051817,-500.0,0.00049479,120]
[408284596,1773351051826,-500.0,0.00049479,120]
[408284597,1773351051835,-500.0,0.00049479,120]
[408284598,1773351051844,-500.0,0.00049479,120]
[408284599,1773351051855,-500.0,0.00049479,120]
[408284600,1773351051865,-500.0,0.00049479,120]
[408284601,1773351051874,-500.0,0.00049479,120]
[408284602,1773351051883,-500.0,0.00049479,120]
[408284603,1773351051893,-500.0,0.00049479,120]
[408284604,1773351051902,-500.0,0.00049479,120]
[408284605,1773351051912,-500.0,0.00049479,120]
[408284606,1773351051921,-500.0,0.00049479,120]
[408284607,1773351051930,-648.98747297,0.00049479,120]
[408284608,1773351051942,-500.0,0.00049479,120]
[408284609,1773351051951,-500.0,0.00049479,120]
[408284610,1773351051961,-500.0,0.00049479,120]
[408284611,1773351051970,-500.0,0.00049479,120]
[408284612,1773351051980,-358.92,0.00049479,120]
[408284613,1773351051989,-500.0,0.00049479,120]
[408284614,1773351051999,-500.0,0.00049479,120]
[408284615,1773351052008,-500.0,0.00049479,120]
[408284616,1773351052018,-500.0,0.00049479,120]
[408284617,1773351052027,-500.0,0.00049479,120]
[408284618,1773351052037,-530.44100611,0.00049479,120]
[408284619,1773351052046,-500.0,0.00049479,120]
[408284620,1773351052055,-500.0,0.00049479,120]
[408284621,1773351052065,-500.0,0.00049479,120]
[408284622,1773351052075,-500.0,0.00049479,120]
[408284623,1773351052084,-210.09795179,0.00049479,120]
[408284624,1773351052094,-500.0,0.00049479,120]
[408284625,1773351052104,-500.0,0.00049479,120]
[408284626,1773351052113,-200.13558718,0.00049479,120]
[408284627,1773351052123,-500.0,0.00049479,120]
[408284628,1773351052132,-563.43566281,0.00049479,120]
[408284629,1773351052142,-500.0,0.00049479,120]
[408284630,1773351052151,-500.0,0.00049479,120]
[408284631,1773351052161,-500.0,0.00049479,120]
[408284632,1773351052171,-500.0,0.00049479,120]
[408284633,1773351052180,-500.0,0.00049479,120]
[408284634,1773351052190,-500.0,0.00049479,120]
[408284635,1773351052200,-500.0,0.00049479,120]
[408284636,1773351052210,-500.0,0.00049479,120]
[408284637,1773351052219,-500.0,0.00049479,120]
[408284638,1773351052228,-567.17993268,0.00049479,120]
[408284639,1773351052238,-500.0,0.00049479,120]
[408284640,1773351052248,-394.46401957,0.00049479,120]
[408284641,1773351052257,-500.0,0.00049479,120]
[408284642,1773351052267,-559.20937047,0.00049479,120]
[408284643,1773351052277,-1154.07,0.00049479,120]
[408284644,1773351052287,-1154.07,0.00049479,120]
[408284645,1773351052297,-1154.07,0.00049479,120]
[408284646,1773351052306,-1154.07,0.00049479,120]
[408284647,1773351052315,-1154.07,0.00049479,120]
[408284648,1773351052325,-1154.07,0.00049479,120]
[408284649,1773351052334,-1154.07,0.00049479,120]
[408284650,1773351052344,-1154.07,0.00049479,120]
[408284651,1773351052353,-1154.07,0.00049479,120]
[408284652,1773351052364,-1154.07,0.00049479,120]
[408284653,1773351052376,-1154.07,0.00049479,120]
[408284654,1773351052385,-1154.07,0.00049479,120]
[408284655,1773351052395,-1154.07,0.00049479,120]
[408284656,1773351052404,-1154.07,0.00049479,120]
[408284657,1773351052415,-1154.07,0.00049479,120]
[408284658,1773351052424,-1154.07,0.00049479,120]
[408284659,1773351052434,-1154.07,0.00049479,120]
[408284660,1773351052443,-1154.07,0.00049479,120]
[408284661,1773351052454,-1154.07,0.00049479,120]
[408284662,1773351052464,-1154.07,0.00049479,120]
[408284663,1773351052473,-1154.07,0.00049479,120]
[408284664,1773351052482,-1154.07,0.00049479,120]
[408284665,1773351052495,-1154.07,0.00049479,120]
[408284666,1773351052507,-1154.2,0.00049479,120]
[408284667,1773351052517,-500.0,0.00049479,120]
[408284668,1773351052527,-500.0,0.00049479,120]
[408284669,1773351052537,-603.51,0.00049479,120]
[408284670,1773351052547,-603.51,0.00049479,120]
[408284671,1773351052557,-603.51,0.00049479,120]
[408284672,1773351052566,-603.51,0.00049479,120]
[408284673,1773351052575,-603.51,0.00049479,120]
[408284674,1773351052585,-603.51,0.00049479,120]
[408284675,1773351052594,-603.51,0.00049479,120]
[408284676,1773351052604,-603.51,0.00049479,120]
[408284677,1773351052614,-603.51,0.00049479,120]
[408284678,1773351052623,-603.51,0.00049479,120]
[408284679,1773351052632,-603.51,0.00049479,120]
[408284680,1773351052643,-603.51,0.00049479,120]
[408284681,1773351052653,-603.51,0.00049479,120]
[408284682,1773351052663,-603.51,0.00049479,120]
[408284683,1773351052672,-603.51,0.00049479,120]
[408284684,1773351052682,-603.51,0.00049479,120]
[408284685,1773351052691,-603.51,0.00049479,120]
[408284686,1773351052700,-603.51,0.00049479,120]
[408284687,1773351052710,-603.51,0.00049479,120]
[408284688,1773351052719,-603.51,0.00049479,120]
[408284689,1773351052729,-603.51,0.00049479,120]
[408284690,1773351052739,-603.51,0.00049479,120]
[408284691,1773351052748,-603.51,0.00049479,120]
[408284692,1773351052757,-603.64533465,0.00049479,120]
[408284693,1773351052767,-500.0,0.00049479,120]
[408284694,1773351052777,-500.0,0.00049479,120]
[408284695,1773351052786,-500.0,0.00049479,120]
[408284696,1773351052795,-500.0,0.00049479,120]
[408284697,1773351052805,-500.0,0.00049479,120]
[408284698,1773351052815,-500.0,0.00049479,120]
[408284699,1773351052824,-500.0,0.00049479,120]
[408284700,1773351052834,-500.0,0.00049479,120]
[408284701,1773351052843,-500.0,0.00049479,120]
[408284702,1773351052853,-500.0,0.00049479,120]
[408284703,1773351052863,-500.0,0.00049479,120]
[408284704,1773351052876,-500.0,0.00049479,120]
[408284705,1773351052885,-500.0,0.00049479,120]
[408284706,1773351052895,-500.0,0.00049479,120]
[408284707,1773351052905,-500.0,0.00049479,120]
[408284708,1773351052914,-500.0,0.00049479,120]
[408284709,1773351052924,-500.0,0.00049479,120]
[408284710,1773351052934,-500.0,0.00049479,120]
[408284711,1773351052943,-500.0,0.00049479,120]
[408284712,1773351052953,-367.44574548,0.00049479,120]
[408284713,1773351052962,-500.0,0.00049479,120]
[408284714,1773351052973,-500.0,0.00049479,120]
[408284715,1773351052983,-236.29034086,0.00049479,120]
[408284716,1773351052992,-500.0,0.00049479,30]
[408284717,1773351053002,-500.0,0.00049479,30]
[408284718,1773351053011,-500.0,0.00049479,30]
[408284719,1773351053021,-500.0,0.00049479,30]
[408284720,1773351053030,-500.0,0.00049479,30]
[408284721,1773351053039,-500.0,0.00049479,30]
[408284722,1773351053049,-500.0,0.00049479,30]
[408284723,1773351053058,-500.0,0.00049479,30]
[408284724,1773351053068,-500.0,0.00049479,30]
[408284725,1773351053077,-500.0,0.00049479,30]
[408284726,1773351053087,-500.0,0.00049479,30]